Workbook

Sheet May Slides (hidden)
B2: Full Year Gains & Losses FC2 v Budget
B4: 2015 Budget | C4: 147930 | D4: 23876 | E4: 0.1614006625
B6: Gains | C6: Net Sales £000’s | D6: £ GP2 | E6: % GP2
B7: Australia | C7: 5511 | D7: 1056 | E7: 0.1916167665
B8: Co-Op (Loved by Us Range) | C8: 1156 | D8: 210 | E8: 0.1816608997
B9: Internal (USA, Germany, Korea & Denmark) | C9: 1082 | D9: 356 | E9: 0.3290203327
B10: Aryzta | C10: 985 | D10: -56 | E10: -0.05685279188
B11: Lidl (Pain Choc) | C11: 538 | D11: -99 | E11: -0.1840148699
B12: M&S | C12: 410 | D12: 111 | E12: 0.2707317073
B13: Greene King | C13: 367 | D13: 42 | E13: 0.1144414169
B14: 3663 | C14: 323 | D14: 191 | E14: 0.5913312693
B15: TRG | C15: 321 | D15: 176 | E15: 0.5482866044
B16: Greggs | C16: 134 | D16: 45 | E16: 0.3358208955
B17: Total Gains | C17: 10827 | D17: 2032 | E17: 0.1876789508
B18: Losses | C18: Net Sales £000’s | D18: £ GP2 | E18: % GP2
B19: Tesco (Ranging & Delists) | C19: -6081 | D19: -2267 | E19: 0.3728005262
B20: KFC (Brioche & DWS) | C20: -2468 | D20: -987 | E20: 0.3999189627
B21: Lidl (H&S Roll) | C21: -2171 | D21: -427 | E21: 0.196683556
B22: Asda (Danish) | C22: -1322 | D22: -310 | E22: 0.2344931921
B23: Other | C23: -531 | D23: -258 | E23: 0.4858757062
B24: South Africa | C24: -523 | D24: -119 | E24: 0.2275334608
B25: Morrisons | C25: -490 | D25: 70 | E25: -0.1428571429
B26: Hopwells | C26: -340 | D26: -107 | E26: 0.3147058824
B27: JDW | C27: -335 | D27: 76 | E27: -0.2268656716
B28: Aldi | C28: -252 | D28: -50 | E28: 0.1984126984
B29: Brakes | C29: -168 | D29: -334 | E29: 1.988095238
B30: Total Losses | C30: -14681 | D30: -4713 | E30: 0.321027178
B32: Net Movement | C32: -3854 | D32: -2681 | E32: 0.6956408926
B34: 2015 FC2 (GL) | C34: 144076 | D34: 21195 | E34: 0.1471098587
B37: Summary R&O to FC2
B39: Opportunities | C39: Net Sales £000’s | D39: £ GP2 | E39: % GP2
B40: Morrisons (2nd Seasonal Line) | C40: 84 | D40: 12 | E40: 0.1428571429
B41: Greene King (Brioche Hot Dog Roll) | C41: 13.33333333 | D41: 2.8 | E41: 0.21
B42: Total Opportunity | C42: 97.33333333 | D42: 14.8 | E42: 0.1520547945
B43: Risks | C43: Net Sales £000’s | D43: £ GP2 | E43: % GP2
B44: Lidl (MPP) | C44: -327 | D44: -48.1 | E44: 0.1470948012
B45: FSC Tender | C45: -145.9 | D45: -32.9 | E45: 0.2254969157
B46: Total Risk | C46: -472.9 | D46: -81 | E46: 0.1712835695
B48: Net Movement | C48: -375.5666667 | D48: -66.2 | E48: 0.1762669743
B51: Total Full Year R&O Impact
B53: 2015 Budget | C53: 147930 | D53: 23876 | E53: 0.1614006625
B55: Opportunities | C55: Net Sales £000’s | D55: £ GP2 | E55: % GP2
B56: Australia | C56: 5511 | D56: 1056 | E56: 0.1916167665
B57: Co-Op (Loved by Us Range) | C57: 1156 | D57: 210 | E57: 0.1816608997
B58: Internal (USA, Germany, Korea & Denmark) | C58: 1082 | D58: 356 | E58: 0.3290203327
B59: Aryzta | C59: 985 | D59: -56 | E59: -0.05685279188
B60: Lidl (Pain Choc) | C60: 538 | D60: -99 | E60: -0.1840148699
B61: M&S | C61: 410 | D61: 111 | E61: 0.2707317073
B62: Greene King | C62: 367 | D62: 42 | E62: 0.1144414169
B63: 3663 | C63: 323 | D63: 191 | E63: 0.5913312693
B64: TRG | C64: 321 | D64: 176 | E64: 0.5482866044
B65: Greggs | C65: 134 | D65: 45 | E65: 0.3358208955
B66: Morrisons (2nd Seasonal Line) | C66: 84 | D66: 12 | E66: 0.1428571429
B67: Greene King (Brioche Hot Dog Roll) | C67: 13.33333333 | D67: 2.8 | E67: 0.21
B68: Total Opportunity | C68: 10924.33333 | D68: 2046.8 | E68: 0.1873615476
B69: Risks | C69: Net Sales £000’s | D69: £ GP2 | E69: % GP2
B70: Tesco (Ranging & Delists) | C70: -6081 | D70: -2267 | E70: 0.3728005262
B71: KFC (Brioche & DWS) | C71: -2468 | D71: -987 | E71: 0.3999189627
B72: Lidl (H&S Roll) | C72: -2171 | D72: -427 | E72: 0.196683556
B73: Asda (Danish) | C73: -1322 | D73: -310 | E73: 0.2344931921
B74: Other | C74: -531 | D74: -258 | E74: 0.4858757062
B75: South Africa | C75: -523 | D75: -119 | E75: 0.2275334608
B76: Morrisons | C76: -490 | D76: 70 | E76: -0.1428571429
B77: Hopwells | C77: -340 | D77: -107 | E77: 0.3147058824
B78: JDW | C78: -335 | D78: 76 | E78: -0.2268656716
B79: Aldi | C79: -252 | D79: -50 | E79: 0.1984126984
B80: Brakes | C80: -168 | D80: -334 | E80: 1.988095238
B81: Lidl (MPP) | C81: -327 | D81: -48.1 | E81: 0.1470948012
B82: FSC Tender | C82: -145.9 | D82: -32.9 | E82: 0.2254969157
B83: Total Risk | C83: -15153.9 | D83: -4794 | E83: 0.3163542058
B85: Net Movement | C85: -4229.566667 | D85: -2747.2 | E85: 0.6495228038
B87: 2014 FC3 (GL) | C87: 143700.4333 | D87: 21128.8 | E87: 0.1470336554
B89: 2014 FC2 (GL) | C89: 144076 | D89: 21195 | E89: 0.1471098587
B91: Movement | C91: -375.5666667 | D91: -66.2 | E91: 0.1762669743

Sheet October Pipeline Internal Full (hidden)
B2: Pipeline
B3: As identified at 31st October 2015
B5: Opportunities | C5: Net Sales £000’s | D5: GP1 £000's | E5: GP1 % | F5: Probability % | G5: Budget | H5: FC3 | I5: Launch Date | J5: Volume Pieces | K5: Tonnage | L5: Piece Weight (g) | M5: NPD | N5: Forecasted SO99 | O5: Product Category | P5: Product(s) | Q5: Production Site | R5: Comments
B6: Morrisons | C6: 100 | D6: 15 | E6: =+D6/C6 -> 0.15 | F6: 1 | G6: N | H6: N | I6: Jan | J6: 500000 | K6: =SUM(J6*L6)/1000000 -> 45 | L6: 90 | M6: N | N6: Y | O6: French and Danish Pastry | P6: Various | Q6: LUB / BD | R6: Additional volume Q1 only
B7: Aldi | C7: 150 | D7: 18 | E7: 0.12 | F7: 1 | G7: N | H7: N | I7: Jan | J7: 790000 | K7: 71.1 | L7: 90 | M7: N | N7: Y | O7: Wheat Bread and Danish Pastry | P7: Kaiser Roll and Danish Lattice | Q7: KL / BD | R7: Aldi store trial - AYR business value
B8: Peacocks | C8: 150 | D8: 45 | E8: 0.3 | F8: 1 | G8: N | H8: N | I8: Jan | J8: 680000 | K8: 61.2 | L8: 90 | M8: N | N8: N | O8: Various | P8: Bread and Sweet Pastry | Q8: MK / BD / LUB | R8: Additional business secured across 7 STD LUUK products.
B9: Asda | C9: 100 | D9: 20 | E9: 0.2 | F9: 0.75 | G9: N | H9: N | I9: Jan | J9: 415000 | K9: 39.425 | L9: 95 | M9: N | N9: N | O9: Danish Pastry | P9: Chocolate Danish | Q9: BD | R9: Opportunity to launch as a trial and long term if a success
B10: Spirit Group | C10: 500 | D10: 60 | E10: 0.12 | F10: 0.5 | G10: N | H10: N | I10: Mar | J10: 5500000 | K10: 412.5 | L10: 75 | M10: Y | N10: N | O10: Fast Food Bread | P10: Brioche | Q10: MK | R10: New business target
B11: Pret a Manger | C11: 2500 | D11: 560 | E11: =+D11/C11 -> 0.224 | F11: 0.05 | G11: N | H11: N | I11: Mar | J11: 10500000 | K11: =SUM(J11*L11)/1000000 -> 945 | L11: 90 | M11: Y | N11: N | O11: French Pastry | P11: Chocolate and Almond Croissants | Q11: LUB | R11: Products currently supplied by Deli-France
B12: Cooperative | C12: 150 | D12: 37.5 | E12: 0.25 | F12: 0.6 | G12: N | H12: N | I12: Sept | J12: 625000 | K12: 61.25 | L12: 98 | M12: Y | N12: N | O12: Danish Pastry | P12: Raspberry Crown | Q12: BD | R12: New business target - Co-op range extension
B13: Vestey Foods | C13: 300 | D13: 24 | E13: 0.08 | F13: 1 | G13: N | H13: N | I13: Jan | J13: 2000000 | K13: 150 | L13: 75 | M13: N | N13: Y | O13: Fast Food Bread & Cake/Soft Dough | P13: Hot Dog Roll & Donuts | Q13: MK / EP | R13: New business
B14: TRG | C14: 250 | D14: 50 | E14: 0.2 | F14: 0.5 | G14: N | H14: N | I14: Feb | J14: 2000000 | K14: 190 | L14: 95 | M14: Y | N14: N | O14: Fast Food Other | P14: Tortilla Pucks | Q14: MK | R14: New business
B15: Greene King | C15: 300 | D15: 54 | E15: 0.18 | F15: 0.7 | G15: N | H15: N | I15: Mar | J15: 2300000 | K15: 264.5 | L15: 115 | M15: N | N15: N | O15: Wheat Bread | P15: Express baguette & Ciabatta roll | Q15: MK | R15: New business
B16: Country Range | C16: 500 | D16: 148 | E16: 0.296 | F16: 0.6 | G16: N | H16: N | I16: Jan | J16: 7250000 | K16: 652.5 | L16: 90 | M16: N | N16: N | O16: Fast Food Bread | P16: Floured Bap | Q16: MK | R16: PL business currently supplied by Kara
B17: Booker | C17: 100 | D17: 24 | E17: 0.24 | F17: 0.5 | G17: N | H17: N | I17: Apr | J17: 900000 | K17: 81 | L17: 90 | M17: N | N17: N | O17: Danish Pastry | P17: Royal Danish Selection | Q17: MK | R17: New business
B18: Booker | C18: 50 | D18: 12.5 | E18: 0.25 | F18: 0.15 | G18: N | H18: N | I18: Apr | J18: 415000 | K18: 33.2 | L18: 80 | M18: N | N18: N | O18: Fast Food Bread | P18: Brioche HDR | Q18: MK | R18: New business
B19: Australia
B20: Woolworths | C20: 3000 | D20: =+C20*0.23 -> 690 | E20: =+D20/C20 -> 0.23 | F20: 0.7 | G20: N | H20: N | I20: 2016-01-01 | J20: 9000000 | K20: 810 | L20: 90 | M20: N | N20: N | O20: French Pastry/Danish | P20: Squares, Pain Choc, Pain Raisin | Q20: LUB/BD | R20: Incremental Business (LUB, LUUK)
B21: South Africa
B22: Nando's | C22: 160 | D22: 67 | E22: =+D22/C22 -> 0.41875 | F22: 0.2 | G22: N | H22: N | I22: 2016-06-01 | J22: 600000 | K22: 54 | L22: 90 | M22: N | N22: N | O22: Other Sweet | P22: PCT | Q22: Panpor | R22: Quoted on new business. PCT main area of interest
B23: KFC | C23: 98 | D23: 41 | E23: =+D23/C23 -> 0.4183673469 | F23: 0.2 | G23: N | H23: N | I23: 2016-06-01 | J23: 900000 | K23: 67.5 | L23: 75 | M23: N | N23: N | O23: Fast Food Bread | P23: Burger Buns | Q23: MK | R23: Quoted on new business. Assuming 2 Buns
B24: Bidvest | C24: 50 | D24: 21 | E24: =+D24/C24 -> 0.42 | F24: 0.3 | G24: N | H24: N | I24: 2016-03-01 | J24: 440000 | K24: 33 | L24: 75 | M24: N | N24: N | O24: Fast Food Bread | P24: Burger Buns and Hot Dog Rolls | Q24: MK | R24: Range of fast food breads to be presented.
B25: Woolworths | C25: 40 | D25: 6 | E25: =+D25/C25 -> 0.15 | F25: 0.8 | G25: N | H25: Y | I25: 2016-03-01 | J25: 150000 | K25: 13.5 | L25: 90 | M25: N | N25: N | O25: Other Sweet | P25: FRE Portuguese Custard Tart | Q25: Panpor | R25: PCT to be relisted now it's FRE
B26: New Zealand | C26: 2000 | D26: 500 | E26: =+D26/C26 -> 0.25 | F26: 0.3 | G26: N | H26: N | I26: 2016-05-01 | J26: 6000000 | K26: 540 | L26: 90 | M26: N | N26: N | O26: French Pastry/Danish | P26: Crowns, Plaits, Croissants | Q26: LUB / BD | R26: New business
B27: Internal
B28: Germany | C28: 13 | D28: =+C28*0.025 -> 0.325 | E28: =+D28/C28 -> 0.025 | F28: 1 | G28: N | H28: N | I28: 2015-12-01 | J28: =40*56*5*12 -> 134400 | K28: =SUM(J28*L28)/1000000 -> 14.784 | L28: 110 | M28: N | N28: N | O28: Wheat Bread | P28: 7105 - Grill Marked Panini
B29: Korea | C29: =+J29/120*10/1000 -> 360 | D29: =+C29*0.12 -> 43.2 | E29: =+D29/C29 -> 0.12 | F29: 0.75 | G29: N | H29: N | I29: 2016-03-01 | J29: =2160000*2 -> 4320000 | K29: 194.4 | L29: 45 | M29: N | N29: N | O29: Danish Pastry | P29: Minis x2
B30: Denmark | C30: =6.25*4.97 -> 31.0625 | D30: =+C30*0.025 -> 0.7765625 | E30: =+D30/C30 -> 0.025 | F30: 0.9 | G30: N | H30: N | I30: 2016-01-01 | J30: =6250*48 -> 300000 | K30: 22.5 | L30: 75 | M30: N | N30: N | O30: Fast Food Bread | P30: Americana Brioche Hotdog Roll
B31: Total Op | C31: =SUM(C6:C30) -> 10902.0625 | D31: =SUM(D6:D30) -> 2437.301562 | E31: =+D31/C31 -> 0.2235633452 | J31: =SUM(J6:J30) -> 55719400 | K31: =SUM(K6:K30) -> 4756.359
B32: Risks | C32: Net Sales £000’s | D32: GP1 £000's | E32: GP1 % | F32: Probability % | G32: Budget | H32: FC3 | I32: De-list Date | J32: Volume Pieces | K32: Tonnage | L32: Piece Weight (g) | M32: NPD | N32: Forecasted SO99 | O32: Product Category | P32: Product(s) | Q32: Production Site | R32: Comments
B33: The Co-operative | C33: -500 | D33: -100 | E33: =+D33/C33 -> 0.2 | F33: 1 | G33: Y | H33: N | I33: Jan | J33: -2000000 | K33: =SUM(J33*L33)/1000000 -> -180 | L33: 90 | M33: N | N33: Y | O33: Danish Pastry | P33: Cinnamon Swirl | Q33: BD | R33: Lost business on quality
B34: Costco | C34: -80 | D34: -26 | E34: 0.325 | F34: 1 | G34: Y | H34: N | I34: Jan | J34: -570000 | K34: -42.75 | L34: 75 | M34: N | N34: Y | O34: Fast Food Bread | P34: Brioche | Q34: MK | R34: Now a rotation line rather than AYR listing
B35: Iceland | C35: -200 | D35: -44 | E35: 0.22 | F35: 1 | G35: Y | H35: N | I35: Mar | J35: -1350000 | K35: -101.25 | L35: 75 | M35: Y | N35: N | O35: Fast Food Bread | P35: Brioche | Q35: MK | R35: Incremental Business - Premium bun offer
B36: KFC France | C36: -200 | D36: -60 | E36: 0.3 | F36: 0.5 | G36: Y | H36: N | I36: May | J36: -2500000 | K36: -187.5 | L36: 75 | M36: Y | N36: N | O36: Fast Food Bread | P36: Bun | Q36: MK | R36: LTO
B37: Lidl | C37: -1300 | D37: -481 | E37: 0.37 | F37: 0.4 | G37: Y | H37: N | I37: Jan | J37: -6720000 | K37: -638.4 | L37: 95 | M37: N | N37: N | O37: Danish Pastry | P37: Maple Pecan Plait | Q37: BD | R37: Risk of not winning back business
B38: Marks & Spencers | C38: -350 | D38: -120 | E38: 0.3428571429 | F38: 1 | G38: Y | H38: N | I38: Jan | J38: -800000 | K38: -72 | L38: 90 | M38: N | N38: Y | O38: Danish Pastry | P38: Raspberry & Lemon Fan | Q38: LUD | R38: Seasonal line replaced
B39: Peters | C39: -417 | D39: 6 | E39: -0.01438848921 | F39: 1 | G39: Y | H39: N | I39: Jan | J39: -3100000 | K39: -279 | L39: 90 | M39: N | N39: Y | O39: Wheat Bread | P39: French bread and Panini | Q39: MK | R39: Lost on price
B40: Tesco | C40: -3300 | D40: -916 | E40: 0.2775757576 | F40: 1 | G40: Y | H40: N | I40: March | J40: -17500000 | K40: -1750 | L40: 100 | M40: N | N40: Y | O40: Wheat Bread | P40: Ciabatta loaf and roll | Q40: LUB | R40: Lost on price and product
B41: Total Risk | C41: =SUM(C33:C40) -> -6347 | D41: =SUM(D33:D40) -> -1741 | E41: =+D41/C41 -> 0.2743028202 | J41: =SUM(J33:J40) -> -34540000 | K41: =SUM(K33:K40) -> -3250.9
B43: Net Movement | C43: =+C31+C41 -> 4555.0625 | D43: =+D31+D41 -> 696.3015625 | E43: =+D43/C43 -> 0.1528632291 | J43: =SUM(J31+J41) -> 21179400 | K43: =SUM(K31+K41) -> 1505.459

Sheet July Slides (hidden)
B2: Full Year Gains & Losses FC2 v Budget
B4: 2015 Budget (GL) | C4: 147930 | D4: 23876 | E4: 0.1614006625
B6: Gains | C6: Net Sales £000’s | D6: £ GP2 | E6: % GP2
B7: Australia | C7: 6435 | D7: 995 | E7: 0.1546231546
B8: Lidl (Pain Choc) | C8: 1761 | D8: 112 | E8: 0.06360022714
B9: Internal (USA, Germany, Korea & Denmark) | C9: 1482 | D9: 366 | E9: 0.2469635628
B10: Co-Op (Loved by Us Range) | C10: 1156 | D10: 210 | E10: 0.1816608997
B11: Aryzta | C11: 985 | D11: -56 | E11: -0.05685279188
B12: M&S | C12: 410 | D12: 111 | E12: 0.2707317073
B13: Greene King | C13: 367 | D13: 42 | E13: 0.1144414169
B14: 3663 | C14: 323 | D14: 191 | E14: 0.5913312693
B15: TRG | C15: 282 | D15: 137 | E15: 0.4858156028
B16: Greggs | C16: 134 | D16: 45 | E16: 0.3358208955
B17: Total Gains | C17: 13335 | D17: 2153 | E17: 0.1614548181
B18: Losses | C18: Net Sales £000’s | D18: £ GP2 | E18: % GP2
B19: Tesco (Ranging & Delists) | C19: -5637 | D19: -2273 | E19: 0.4032286677
B20: Lidl (H&S Roll & Pain Raisin) | C20: -3393 | D20: -688 | E20: 0.2027704097
B21: KFC (Brioche & DWS) | C21: -2368 | D21: -944 | E21: 0.3986486486
B22: Asda (Danish) | C22: -1322 | D22: -310 | E22: 0.2344931921
B23: Morrisons | C23: -603 | D23: -27 | E23: 0.0447761194
B24: South Africa | C24: -524 | D24: -27 | E24: 0.05152671756
B25: Hopwells | C25: -340 | D25: -107 | E25: 0.3147058824
B26: JDW | C26: -335 | D26: 76 | E26: -0.2268656716
B27: Aldi | C27: -252 | D27: -50 | E27: 0.1984126984
B28: Brakes | C28: -168 | D28: -334 | E28: 1.988095238
B29: Other | C29: -110 | D29: -198 | E29: 1.8
B30: Total Losses | C30: -15052 | D30: -4882 | E30: 0.3243422801
B32: Net Movement | C32: -1717 | D32: -2729 | E32: 1.589400116
B34: 2015 FC2 (GL) | C34: 146213 | D34: 21147 | E34: 0.1446314623
B37: Summary R&O to FC2
B39: Opportunities | C39: Net Sales £000’s | D39: £ GP2 | E39: % GP2
B40: Lidl (VCC) | C40: 474 | D40: 89 | E40: =+D40/C40 -> 0.1877637131
B41: Tesco | C41: 600 | D41: 92 | E41: =+D41/C41 -> 0.1533333333
B42: Other | C42: 85 | D42: 10 | E42: =+D42/C42 -> 0.1176470588
B43: Morrisons | C43: 190 | D43: 18 | E43: 0.09473684211
B44: Greene King (Brioche Hot Dog Roll) | C44: 13.33333333 | D44: 2.8 | E44: 0.21
B45: Total Opportunity | C45: =SUM(C40:C44) -> 1362.333333 | D45: =SUM(D40:D44) -> 211.8 | E45: =+D45/C45 -> 0.1554685588
B46: Risks | C46: Net Sales £000’s | D46: £ GP2 | E46: % GP2
B47: Australia | C47: -344 | D47: -68 | E47: =+D47/C47 -> 0.1976744186
B48: Other | C48: -91 | D48: -55 | E48: =+D48/C48 -> 0.6043956044
B49: South Africa | C49: -73 | D49: -20 | E49: =+D49/C49 -> 0.2739726027
B50: Hopwells | C50: -47 | D50: -3 | E50: 0.06382978723
B51: Lidl (MPP) | C51: -327 | D51: -48.1 | E51: 0.1470948012
B52: FSC Tender | C52: -100 | D52: -100 | E52: 1
B53: Total Risk | C53: =SUM(C47:C52) -> -982 | D53: =SUM(D47:D52) -> -294.1 | E53: =+D53/C53 -> 0.299490835
B55: Net Movement | C55: =+C45+C53 -> 380.3333333 | D55: =+D45+D53 -> -82.3 | E55: =+D55/C55 -> -0.2163891323

Sheet June Pipeline (hidden)
B2: 2015 Sales Pipeline
B4: Opportunities | C4: Net Sales £000’s | D4: GP1 £000's | E4: GP1 % | F4: Probability % | G4: FC2 | H4: Launch Date | I4: Volume Pieces | J4: NPD | K4: Forecasted SO99 | L4: Product Category | M4: Product(s) | N4: Production Site | O4: Comments
B5: Lidl | C5: 3000 | D5: 660 | E5: =+D5/C5 -> 0.22 | F5: 0.6 | G5: Y | H5: October | I5: 10000000 | J5: Y | K5: N | L5: Danish Pastry | M5: Hero Maple Pecan Plait | N5: BD | O5: Possible alternative to existing MPP
B6: Pret a Manger | C6: 2500 | D6: 560 | E6: 0.224 | F6: 0.45 | G6: N | H6: September | I6: 10500000 | J6: Y | K6: N | L6: French Pastry | M6: Chocolate and Almond Croissants | N6: LUB | O6: Products currently supplied by Deli-france
B7: Joe & the Juice | C7: 1175 | D7: 29.375 | E7: 0.025 | F7: 0.4 | G7: N | H7: September | I7: 9000000 | J7: Y | K7: N | L7: Wheat Bread | M7: Ciabatta shaped product | N7: MK | O7: Incremental Business. Majority of volume subject to ICP
B8: Lidl | C8: 630 | D8: 150 | E8: 0.2380952381 | F8: 0.5 | G8: N | H8: July | I8: 3600000 | J8: Y | K8: N | L8: Danish Pastry | M8: NPD - TBC | N8: BD | O8: Replacement for Vanilla Crème Crown
B9: Tyneside | C9: 600 | D9: 72 | E9: 0.12 | F9: 0.6 | G9: Y | H9: June | I9: 6000000 | J9: N | K9: N | L9: Wheat Bread | M9: Demi Baguette | N9: MK | O9: Product currently supplied by Gallaghers (Aryzta)
B10: Country Range | C10: 500 | D10: 148 | E10: 0.296 | F10: 0.4 | G10: N | H10: September | I10: 7250000 | J10: N | K10: N | L10: Fast Food Bread | M10: Floured Bap | N10: MK | O10: PL business currently supplied by Kara
B11: Tesco | C11: 500 | D11: 60 | E11: 0.12 | F11: 0.6 | G11: Y | H11: September | I11: 1300000 | J11: Y | K11: N | L11: Savoury | M11: Savoury turnovers | N11: Klemme | O11: Savoury range extension WK33 REVIEW
B12: Marks & Spencers | C12: 350 | D12: 120 | E12: 0.3428571429 | F12: 0.7 | G12: Y | H12: September | I12: 735000 | J12: N | K12: N | L12: Danish Pastry | M12: Raspberry & Lemon Fan | N12: LUD | O12: Successful Seasonal ranging - Maybe ranged permanantely
B13: IKEA | C13: 270 | D13: 75 | E13: 0.2777777778 | F13: 0.5 | G13: N | H13: July | I13: 4400000 | J13: N | K13: N | L13: Fast Food Bread | M13: Hot Dog Roll | N13: MK | O13: Transfer of Brakes volume to direct supply
B14: KFC | C14: 250 | D14: 50 | E14: 0.2 | F14: 0.5 | G14: N | H14: Aug | I14: 3000000 | J14: Y | K14: N | L14: Fast Food Bread | M14: Bun | N14: MK | O14: Value offering
B15: Iceland | C15: 200 | D15: 44 | E15: 0.22 | F15: 0.4 | G15: N | H15: September | I15: 1350000 | J15: N | K15: N | L15: Fast Food Bread | M15: Brioche | N15: MK | O15: Incremental Business - Premium bun offer
B16: Asda | C16: 200 | D16: 24 | E16: 0.12 | F16: 0.35 | G16: N | H16: October | I16: 570000 | J16: N | K16: N | L16: Savoury | M16: Cheese Twist, Swirly | N16: Klemme | O16: Savoury range review opportunity - New to Asda
B17: TRG | C17: 100 | D17: 30 | E17: 0.3 | F17: 0.9 | G17: Y | H17: May | I17: 900000 | J17: Y | K17: N | L17: Fast Food Bread | M17: Burger Bun | N17: MK | O17: Incremental Business with Frankie & Bennies
B18: Odeon Cinema | C18: 100 | D18: 28 | E18: 0.28 | F18: 0.4 | G18: N | H18: September | I18: 1250000 | J18: N | K18: N | L18: Fast Food Bread | M18: Hot Dog Roll | N18: MK | O18: Tender process
B19: Booker | C19: 100 | D19: 24 | E19: 0.24 | F19: 0.3 | G19: N | H19: September | I19: 900000 | J19: Y | K19: N | L19: Wheat Bread | M19: Dinner Roll Selection | N19: MK | O19: Range Extension
B20: Booker | C20: 50 | D20: 12.5 | E20: 0.25 | F20: 0.15 | G20: N | H20: September | I20: 415000 | J20: Y | K20: N | L20: Wheat Bread | M20: NPD - TBC | N20: MK | O20: Incremental Business
B21: Australia
B22: Coles | C22: 1800 | D22: 468 | E22: =+D22/C22 -> 0.26 | F22: 0.9 | G22: Y | H22: August | I22: 6000000 | J22: N | K22: N | L22: French Pastry/Danish | M22: Filled Croissants, Fans | N22: LUB/BD | O22: Incremental Business (LUB, LUUK Cookie Creations)
B23: Woolworths | C23: 1500 | D23: 351 | E23: =+D23/C23 -> 0.234 | F23: 0.5 | G23: N | H23: October | I23: 4500000 | J23: N | K23: N | L23: French Pastry/Danish | M23: Squares, Pain Choc, Pain Raisin | N23: LUB/BD | O23: Incremental Business (LUB, LUUK)
B24: South Africa
B25: SPAR | C25: 220 | D25: 92 | E25: =+D25/C25 -> 0.4181818182 | F25: 0.2 | G25: N | H25: September | I25: 2850000 | J25: N | K25: N | L25: French Pastry/Danish | M25: Croissant, VCC, Pain Chocolat | N25: LUB/BD | O25: Quoted on new business. Assuming 3 new lines
B26: Nando's | C26: 160 | D26: 67 | E26: =+D26/C26 -> 0.41875 | F26: 0.2 | G26: N | H26: September | I26: 600000 | J26: N | K26: N | L26: Other Sweet | M26: PCT | N26: Panpor | O26: Quoted on new business. PCT main area of interest
B27: KFC | C27: 98 | D27: 41 | E27: =+D27/C27 -> 0.4183673469 | F27: 0.2 | G27: N | H27: September | I27: 900000 | J27: N | K27: N | L27: Fast Food Bread | M27: Burger Buns | N27: MK | O27: Quoted on new business. Assuming 2 Buns
B28: Bidvest | C28: 50 | D28: 21 | E28: =+D28/C28 -> 0.42 | F28: 0.3 | G28: N | H28: September | I28: 440000 | J28: N | K28: N | L28: Fast Food Bread | M28: Burger Buns and Hot Dog Rolls | N28: MK | O28: Range of fast food breads to be presented.
B29: Woolworths | C29: 40 | D29: 6 | E29: 0.06 | F29: 0.8 | G29: Y | H29: September | I29: 150000 | J29: N | K29: N | L29: Other Sweet | M29: FRE Portuguese Custard Tart | N29: Panpor | O29: PCT to be relisted now it's FRE
B30: Internal
B31: LUB | C31: 82 | E31: =+D31/C31 -> 0 | F31: 0.1 | G31: Y | H31: September | I31: 875000 | J31: Y | K31: N | L31: Danish Pastry | M31: Mini Mania | N31: BD | O31: Incremental Business (LUB) - launch in LUB new brochure
B32: LUB | C32: 75 | E32: =+D32/C32 -> 0 | F32: 0.25 | G32: Y | H32: June | I32: 800000 | J32: N | K32: N | L32: Fast Food Bread | M32: Americana Brioche Bun | N32: MK | O32: Incremental Business (LUB)
B33: LUD | C33: 52 | E33: =+D33/C33 -> 0 | F33: 0.2 | G33: Y | H33: September | I33: 840000 | J33: N | K33: Y | L33: Danish Pastry | M33: Mini Cinnamon Swirl | N33: BD | O33: Incremental Business (LUD) - New customer in Japan
B34: LUD | C34: 52 | E34: =+D34/C34 -> 0 | F34: 0.2 | G34: Y | H34: September | I34: 840000 | J34: N | K34: Y | L34: Danish Pastry | M34: Mini Vanilla Crème Crown | N34: BD | O34: Incremental Business (LUD) - New customer in Japan
B35: Total Op | C35: =SUM(C5:C34) -> 14654 | D35: =SUM(D5:D34) -> 3132.875 | E35: =+D35/C35 -> 0.2137897502 | I35: =SUM(I5:I34) -> 79965000
B36: Risks | C36: Net Sales £000’s | D36: GP1 £000's | E36: GP1 % | F36: Probability % | H36: De-list Date | I36: Volume Pieces
B37: Lidl | C37: -630 | D37: -185 | E37: =+D37/C37 -> 0.2936507937 | F37: 0.9 | G37: Y | H37: July | I37: -3600000 | K37: Y | L37: Danish Pastry | M37: Vanilla Crème Crown | N37: BD | O37: High Waste
B38: Creed | C38: -150 | D38: -57 | E38: =+D38/C38 -> 0.38 | F38: 0.3 | G38: N | H38: July | I38: -1500000 | K38: N | L38: Wheat Bread | M38: Small Grill Marked Panini | N38: MK | O38: E-auction
B39: Booker | C39: -50 | D39: -11 | E39: =+D39/C39 -> 0.22 | F39: 0.5 | G39: N | H39: Aug | I39: -300000 | K39: N | L39: Other Fast Food | M39: Dough Pucks | N39: MK | O39: Range rationalisation
B40: Total Risk | C40: =SUM(C37:C39) -> -830 | D40: =SUM(D37:D39) -> -253 | E40: =+D40/C40 -> 0.3048192771 | I40: =SUM(I37:I39) -> -5400000
B42: Net Movement | C42: =+C35+C40 -> 13824 | D42: =+D35+D40 -> 2879.875 | E42: =+D42/C42 -> 0.2083242911 | I42: =SUM(I35+I40) -> 74565000

Sheet FC3 R&O Schedule (hidden)
B2: Commerical 2014 Gains & Losses & FC3 R&O
B4: Full Year Gains & Losses FC3 v Budget
B6: 2014 Budget | C6: 153932 | D6: 25851 | E6: =+D6/C6 -> 0.1679377907
B8: Gains | C8: Net Sales £000’s | D8: £ GP1 | E8: % GP1
B9: Lidl | C9: 3655 | D9: 715 | E9: =+D9/C9 -> 0.195622435
B10: New Brioche | C10: 1794 | D10: 424 | E10: =+D10/C10 -> 0.2363433668
B11: Bookers | C11: 708 | D11: 122 | E11: =+D11/C11 -> 0.1723163842
B12: Asda | C12: 540 | D12: 95 | E12: 0.1759259259
B13: New Puff Pastry | C13: 493 | D13: 43 | E13: 0.08722109533
B14: KFC Water Split & Mini Fillet | C14: 358 | D14: 58 | E14: 0.1620111732
B15: KFC Brioche | C15: 297 | D15: 76 | E15: 0.2558922559
B16: LU USA Additional Danish Pastry | C16: 250 | D16: 24 | E16: 0.096
B17: Total Gains | C17: =SUM(C9:C16) -> 8095 | D17: =SUM(D9:D16) -> 1557 | E17: =+D17/C17 -> 0.1923409512
B18: Losses | C18: Net Sales £000’s | D18: £ GP1 | E18: % GP1
B19: Australia | C19: -4241 | D19: -1418 | E19: =+D19/C19 -> 0.3343551049
B20: Morrison’s | C20: =-2135-350 -> -2485 | D20: =-231-80 -> -311 | E20: =+D20/C20 -> 0.1251509054
B21: Asda Danish | C21: -1956 | D21: 70 | E21: =+D21/C21 -> -0.03578732106
B22: Tesco (Ranging & Delists) | C22: =-1361-100-873 -> -2334 | D22: =-50-421 -> -471 | E22: 0.2017994859
B23: Pret A Manger (FP) | C23: -1052 | D23: -309 | E23: 0.2937262357
B24: Pricing (Various Customers) | C24: -991 | D24: -991 | E24: 1
B25: Saudi Arabia | C25: -616 | D25: -209 | E25: 0.3392857143
B26: Co-Op | C26: -591 | D26: -167 | E26: 0.282571912
B27: 3663 | C27: -560 | D27: -284 | E27: 0.5071428571
B28: Other | C28: =-489-73 -> -562 | D28: =-53 -> -53 | E28: 0.09430604982
B29: KFC Europe & GB | C29: -445 | D29: -45 | E29: 0.1011235955
B30: LU USA | C30: -313 | D30: -30 | E30: 0.09584664537
B31: EAT | C31: -305 | D31: -82 | E31: 0.268852459
B32: Costco | C32: -198 | D32: -195 | E32: 0.9848484848
B33: Total Losses | C33: =SUM(C19:C32) -> -16649 | D33: =SUM(D19:D32) -> -4495 | E33: =+D33/C33 -> 0.2699861854
B35: Net Movement | C35: =+C17+C33 -> -8554 | D35: =+D17+D33 -> -2938 | E35: =+D35/C35 -> 0.3434650456
B37: 2014 FC3 (GL) | C37: =+C6+C17+C33 -> 145378 | D37: =+D6+D17+D33 -> 22913 | E37: =+D37/C37 -> 0.1576098172
B40: R&O to FC3 | X40: Total Full Year R&O Impact | AC40: Sept to Dec Impact - Total | AH40: Sept to Dec Impact - Principal
S42: Summary R&O to FC3 | X42: 2014 Budget | Y42: 153932 | Z42: 25851 | AA42: =+Z42/Y42 -> 0.1679377907 | AC42: Summary R&O to FC2 | AH42: Summary R&O to FC2
C43: Sept Act | G43: Oct FC3 | K43: Nov FC3 | O43: Dec FC3
B44: Opportunities | C44: Net Sales £000’s | D44: £ GP1 | E44: % GP1 | G44: Net Sales £000’s | H44: £ GP1 | I44: % GP1 | K44: Net Sales £000’s | L44: £ GP1 | M44: % GP1 | O44: Net Sales £000’s | P44: £ GP1 | Q44: % GP1 | S44: Opportunities | T44: Net Sales £000’s | U44: £ GP1 | V44: % GP1 | X44: Opportunities | Y44: Net Sales £000’s | Z44: £ GP1 | AA44: % GP1 | AC44: Opportunities | AD44: Net Sales £000’s | AE44: £ GP1 | AF44: % GP1 | AH44: Opportunities | AI44: Net Sales £000’s | AJ44: £ GP1 | AK44: % GP1
B45: Lidl | C45: 89 | D45: 12 | E45: =+D45/C45 -> 0.1348314607 | G45: 107 | H45: 27 | I45: =+H45/G45 -> 0.2523364486 | K45: 56 | L45: 13 | M45: =+L45/K45 -> 0.2321428571 | O45: 65 | P45: 17 | Q45: =+P45/O45 -> 0.2615384615 | S45: =+B9 -> Lidl | T45: =+C45+G45+K45+O45 -> 317 | U45: =+D45+H45+L45+P45 -> 69 | V45: =+U45/T45 -> 0.2176656151 | X45: =+B9 -> Lidl | Y45: =+C9+T45 -> 3972 | Z45: 784 | AA45: =+Z45/Y45 -> 0.1973816717 | AC45: =+S45 -> Lidl | AD45: =+C45+G45+K45+O45 -> 317 | AE45: =+D45+H45+L45+P45 -> 69 | AF45: =+AE45/AD45 -> 0.2176656151 | AH45: =+X45 -> Lidl | AI45: =+AD45 -> 317 | AJ45: =+AE45 -> 69 | AK45: =+AJ45/AI45 -> 0.2176656151
B46: New Brioche | S46: New Brioche | T46: =+C46+G46+K46+O46 -> 0 | U46: =+D46+H46+L46+P46 -> 0 | V46: =+U46/T46 ->  | X46: New Brioche | Y46: 1794 | Z46: 424 | AA46: =+Z46/Y46 -> 0.2363433668 | AC46: =+S46 -> New Brioche | AD46: 0 | AE46: 0 | AF46: =+AE46/AD46 ->  | AH46: =+X46 -> New Brioche | AI46: =+AD46 -> 0 | AJ46: =+AE46 -> 0 | AK46: =+AJ46/AI46 -> 
B47: Bookers | O47: 40 | P47: 13 | Q47: 0.325 | S47: Bookers | T47: 40 | U47: 13 | V47: =+U47/T47 -> 0.325 | X47: Bookers | Y47: 748 | Z47: 135 | AA47: =+Z47/Y47 -> 0.1804812834 | AC47: Bookers | AD47: 40 | AE47: 13 | AF47: =+AE47/AD47 -> 0.325 | AH47: Bookers | AI47: =+AD47 -> 40 | AJ47: =+AE47 -> 13 | AK47: =+AJ47/AI47 -> 0.325
B48: Asda | S48: Asda | T48: 0 | U48: 0 | X48: Asda | Y48: 540 | Z48: 95 | AA48: 0.1759259259 | AC48: Asda | AD48: 0 | AE48: 0 | AH48: Asda | AI48: 0 | AJ48: 0
B49: New Puff Pastry | S49: New Puff Pastry | T49: 0 | U49: 0 | X49: New Puff Pastry | Y49: 493 | Z49: 43 | AA49: 0.08722109533 | AC49: New Puff Pastry | AD49: 0 | AE49: 0 | AH49: New Puff Pastry | AI49: 0 | AJ49: 0
B50: KFC Water Split & Mini Fillet | S50: KFC Water Split & Mini Fillet | T50: 0 | U50: 0 | X50: KFC Water Split & Mini Fillet | Y50: 358 | Z50: 58 | AA50: 0.1620111732 | AC50: KFC Water Split & Mini Fillet | AD50: 0 | AE50: 0 | AH50: KFC Water Split & Mini Fillet | AI50: 0 | AJ50: 0
B51: KFC Brioche | C51: 200 | D51: 60 | E51: 0.3 | S51: KFC Brioche | T51: 200 | U51: 60 | V51: 0.3 | X51: KFC Brioche | Y51: 497 | Z51: 136 | AA51: 0.2736418511 | AC51: KFC Brioche | AD51: 200 | AE51: 60 | AF51: 0.3 | AH51: KFC Brioche | AI51: 200 | AJ51: 60 | AK51: 0.3
B52: LU USA Additional Danish Pastry | C52: 73 | D52: 9 | E52: 0.1232876712 | S52: LU USA Additional Danish Pastry | T52: 73 | U52: 9 | V52: 0.1232876712 | X52: LU USA Additional Danish Pastry | Y52: 323 | Z52: 33 | AA52: 0.1021671827 | AC52: LU USA Additional Danish Pastry | AD52: 73 | AE52: 9 | AF52: 0.1232876712 | AH52: LU USA Additional Danish Pastry | AI52: 73 | AJ52: 9 | AK52: 0.1232876712
B53: Morrison's (Ranging) | O53: 75 | P53: 8 | Q53: 0.1066666667 | S53: =+B53 -> Morrison's (Ranging) | T53: 75 | U53: 8 | V53: 0.1066666667 | X53: =+B53 -> Morrison's (Ranging) | Y53: =+T53 -> 75 | Z53: =+U53 -> 8 | AA53: 0.1066666667 | AC53: Morrison's (Ranging) | AD53: 75 | AE53: 8 | AF53: 0.1066666667 | AH53: Morrison's (Ranging) | AI53: =+AD53-40 -> 35 | AJ53: =+AE53-4 -> 4 | AK53: 0.1142857143
B54: Asda Additional New Business | G54: 33 | H54: 6 | I54: 0.1818181818 | O54: 45 | P54: 8.5 | Q54: 0.1888888889 | S54: Asda Additional New Business | T54: 78 | U54: 14.5 | V54: 0.1858974359 | X54: Asda Additional New Business | Y54: =+T54 -> 78 | Z54: 14.5 | AA54: 0.1858974359 | AC54: Asda Additional New Business | AD54: 78 | AE54: 14.5 | AF54: 0.1858974359 | AH54: Asda Additional New Business | AI54: 78 | AJ54: 14.5 | AK54: 0.1858974359
B55: Australia | S55: Australia | T55: 0 | U55: 0 | X55: Australia | Y55: 0 | Z55: 0 | AC55: Australia | AD55: 0 | AE55: 0 | AH55: Australia | AI55: 0 | AJ55: 0
B56: Co-Op | C56: 50 | D56: 8 | E56: 0.16 | G56: 120 | H56: 31 | I56: 0.2583333333 | K56: 29 | L56: 10 | M56: 0.3448275862 | O56: 40 | P56: 12 | Q56: 0.3 | S56: =+B56 -> Co-Op | T56: =+C56+G56+K56+O56 -> 239 | U56: =+D56+H56+L56+P56 -> 61 | V56: =+U56/T56 -> 0.2552301255 | X56: =+B56 -> Co-Op | Y56: =+T56 -> 239 | Z56: =+U56 -> 61 | AA56: =+Z56/Y56 -> 0.2552301255 | AC56: =+S56 -> Co-Op | AD56: =+C56+G56+K56+O56 -> 239 | AE56: =+D56+H56+L56+P56 -> 61 | AF56: =+AE56/AD56 -> 0.2552301255 | AH56: =+X56 -> Co-Op | AI56: =+AD56 -> 239 | AJ56: =+AE56 -> 61 | AK56: =+AJ56/AI56 -> 0.2552301255
B57: Bako | C57: 55 | D57: 8 | E57: =+D57/C57 -> 0.1454545455 | I57: =+H57/G57 ->  | K57: 18 | L57: 3 | M57: =+L57/K57 -> 0.1666666667 | Q57: =+P57/O57 ->  | S57: =+B57 -> Bako | T57: =+C57+G57+K57+O57 -> 73 | U57: =+D57+H57+L57+P57 -> 11 | V57: =+U57/T57 -> 0.1506849315 | X57: =+B57 -> Bako | Y57: =+T57 -> 73 | Z57: =+U57 -> 11 | AA57: =+Z57/Y57 -> 0.1506849315 | AC57: =+S57 -> Bako | AD57: =+C57+G57+K57+O57 -> 73 | AE57: =+D57+H57+L57+P57 -> 11 | AF57: =+AE57/AD57 -> 0.1506849315 | AH57: =+X57 -> Bako | AI57: =+AD57 -> 73 | AJ57: =+AE57 -> 11 | AK57: =+AJ57/AI57 -> 0.1506849315
B58: Brakes | C58: 96 | D58: 15 | E58: =+D58/C58 -> 0.15625 | G58: 95 | H58: 8 | I58: =+H58/G58 -> 0.08421052632 | M58: =+L58/K58 ->  | Q58: =+P58/O58 ->  | S58: =+B58 -> Brakes | T58: =+C58+G58+K58+O58 -> 191 | U58: =+D58+H58+L58+P58 -> 23 | V58: =+U58/T58 -> 0.1204188482 | X58: =+B58 -> Brakes | Y58: =+T58 -> 191 | Z58: =+U58 -> 23 | AA58: =+Z58/Y58 -> 0.1204188482 | AC58: =+S58 -> Brakes | AD58: =+C58+G58+K58+O58 -> 191 | AE58: =+D58+H58+L58+P58 -> 23 | AF58: =+AE58/AD58 -> 0.1204188482 | AH58: =+X58 -> Brakes | AI58: =+AD58 -> 191 | AJ58: =+AE58 -> 23 | AK58: =+AJ58/AI58 -> 0.1204188482
B59: Sterling Supergroup | E59: =+D59/C59 ->  | I59: =+H59/G59 ->  | K59: 99 | L59: 23 | M59: =+L59/K59 -> 0.2323232323 | Q59: =+P59/O59 ->  | S59: =+B59 -> Sterling Supergroup | T59: =+C59+G59+K59+O59 -> 99 | U59: =+D59+H59+L59+P59 -> 23 | V59: =+U59/T59 -> 0.2323232323 | X59: =+B59 -> Sterling Supergroup | Y59: =+T59 -> 99 | Z59: =+U59 -> 23 | AA59: =+Z59/Y59 -> 0.2323232323 | AC59: =+S59 -> Sterling Supergroup | AD59: =+C59+G59+K59+O59 -> 99 | AE59: =+D59+H59+L59+P59 -> 23 | AF59: =+AE59/AD59 -> 0.2323232323 | AH59: =+X59 -> Sterling Supergroup | AI59: =+AD59 -> 99 | AJ59: =+AE59 -> 23 | AK59: =+AJ59/AI59 -> 0.2323232323
B60: Other | C60: =127-73 -> 54 | D60: =30-9 -> 21 | E60: =+D60/C60 -> 0.3888888889 | G60: =203-92 -> 111 | H60: =70-18 -> 52 | I60: =+H60/G60 -> 0.4684684685 | K60: 75 | L60: 6 | M60: =+L60/K60 -> 0.08 | O60: 45 | P60: 6 | Q60: =+P60/O60 -> 0.1333333333 | S60: =+B60 -> Other | T60: =+C60+G60+K60+O60 -> 285 | U60: =+D60+H60+L60+P60 -> 85 | V60: =+U60/T60 -> 0.298245614 | X60: =+B60 -> Other | Y60: =+T60 -> 285 | Z60: =+U60 -> 85 | AA60: =+Z60/Y60 -> 0.298245614 | AC60: =+S60 -> Other | AD60: =+C60+G60+K60+O60 -> 285 | AE60: =+D60+H60+L60+P60 -> 85 | AF60: =+AE60/AD60 -> 0.298245614 | AH60: =+X60 -> Other | AI60: =+AD60 -> 285 | AJ60: =+AE60 -> 85 | AK60: =+AJ60/AI60 -> 0.298245614
B61: Aryzta | E61: =+D61/C61 ->  | G61: 72 | H61: 8 | I61: =+H61/G61 -> 0.1111111111 | M61: =+L61/K61 ->  | Q61: =+P61/O61 ->  | S61: =+B61 -> Aryzta | T61: =+C61+G61+K61+O61 -> 72 | U61: =+D61+H61+L61+P61 -> 8 | V61: =+U61/T61 -> 0.1111111111 | X61: =+B61 -> Aryzta | Y61: =+T61 -> 72 | Z61: =+U61 -> 8 | AA61: =+Z61/Y61 -> 0.1111111111 | AC61: =+S61 -> Aryzta | AD61: =+C61+G61+K61+O61 -> 72 | AE61: =+D61+H61+L61+P61 -> 8 | AF61: =+AE61/AD61 -> 0.1111111111 | AH61: =+X61 -> Aryzta | AI61: =+AD61 -> 72 | AJ61: =+AE61 -> 8 | AK61: =+AJ61/AI61 -> 0.1111111111
B62: Iceland | E62: =+D62/C62 ->  | G62: 57 | H62: 9 | I62: =+H62/G62 -> 0.1578947368 | M62: =+L62/K62 ->  | Q62: =+P62/O62 ->  | S62: =+B62 -> Iceland | T62: =+C62+G62+K62+O62 -> 57 | U62: =+D62+H62+L62+P62 -> 9 | V62: =+U62/T62 -> 0.1578947368 | X62: =+B62 -> Iceland | Y62: =+T62 -> 57 | Z62: =+U62 -> 9 | AA62: =+Z62/Y62 -> 0.1578947368 | AC62: =+S62 -> Iceland | AD62: =+C62+G62+K62+O62 -> 57 | AE62: =+D62+H62+L62+P62 -> 9 | AF62: =+AE62/AD62 -> 0.1578947368 | AH62: =+X62 -> Iceland | AI62: =+AD62 -> 57 | AJ62: =+AE62 -> 9 | AK62: =+AJ62/AI62 -> 0.1578947368
B63: Sainsburys | G63: 45 | H63: 9 | I63: 0.2 | K63: 44 | L63: 10 | M63: 0.2272727273 | S63: Sainsburys | T63: 89 | U63: 19 | V63: 0.2134831461 | X63: Sainsburys | Y63: 89 | Z63: 19 | AA63: 0.2134831461 | AC63: Sainsburys | AD63: 89 | AE63: 19 | AF63: 0.2134831461 | AH63: Sainsburys | AI63: 89 | AJ63: 19 | AK63: 0.2134831461
B64: Tesco New Listings | O64: 0 | P64: 0 | S64: Tesco New Listings | T64: 0 | U64: 0 | X64: Tesco New Listings | Y64: 0 | Z64: 0 | AC64: Tesco New Listings | AD64: 0 | AE64: 0 | AH64: Tesco New Listings | AI64: =+AD64-30 -> -30 | AJ64: =+AE64-5 -> -5 | AK64: 0.1666666667
B65: LU Japan (Costco) | C65: 180 | D65: 22 | E65: =+D65/C65 -> 0.1222222222 | G65: 55 | H65: 8 | I65: =+H65/G65 -> 0.1454545455 | M65: =+L65/K65 ->  | Q65: =+P65/O65 ->  | S65: LU Japan (Costco) | T65: 235 | U65: 30 | V65: =+U65/T65 -> 0.1276595745 | X65: LU Japan (Costco) | Y65: =+T65 -> 235 | Z65: =+U65 -> 30 | AA65: =+Z65/Y65 -> 0.1276595745 | AC65: LU Japan (Costco) | AD65: 235 | AE65: 30 | AF65: 0.1276595745 | AH65: LU Japan (Costco) | AI65: 235 | AJ65: 30 | AK65: 0.1276595745
B66: Pret A Manger (FP) | C66: 120 | D66: 30 | E66: 0.25 | G66: 245 | H66: 65 | I66: 0.2653061224 | K66: 192 | L66: 53 | M66: 0.2760416667 | O66: 180 | P66: 50 | Q66: 0.2777777778 | S66: Pret A Manger (FP) | T66: 737 | U66: 198 | V66: 0.2686567164 | X66: Pret A Manger (FP) | Y66: 737 | Z66: 198 | AA66: 0.2686567164 | AC66: Pret A Manger (FP) | AD66: 737 | AE66: 198 | AF66: 0.2686567164 | AH66: Pret A Manger (FP) | AI66: 0 | AJ66: 0
B67: Total Opportunity | C67: =SUM(C45:C66) -> 917 | D67: =SUM(D45:D66) -> 185 | E67: =+D67/C67 -> 0.2017448201 | G67: =SUM(G45:G66) -> 940 | H67: =SUM(H45:H66) -> 223 | I67: =+H67/G67 -> 0.2372340426 | K67: =SUM(K45:K66) -> 513 | L67: =SUM(L45:L66) -> 118 | M67: =+L67/K67 -> 0.2300194932 | O67: =SUM(O45:O66) -> 490 | P67: =SUM(P45:P66) -> 114.5 | Q67: =+P67/O67 -> 0.2336734694 | S67: Total Opportunity | T67: =SUM(T45:T66) -> 2860 | U67: =SUM(U45:U66) -> 640.5 | V67: =+U67/T67 -> 0.223951049 | X67: Total Opportunity | Y67: =SUM(Y45:Y66) -> 10955 | Z67: =SUM(Z45:Z66) -> 2197.5 | AA67: =+Z67/Y67 -> 0.2005933364 | AC67: Total Opportunity | AD67: =SUM(AD45:AD66) -> 2860 | AE67: =SUM(AE45:AE66) -> 640.5 | AF67: =+AE67/AD67 -> 0.223951049 | AH67: Total Opportunity | AI67: =SUM(AI45:AI66) -> 2053 | AJ67: =SUM(AJ45:AJ66) -> 433.5 | AK67: =+AJ67/AI67 -> 0.2111544082
B68: Risks | C68: Net Sales £000’s | D68: £ GP1 | E68: % GP1 | G68: Net Sales £000’s | H68: £ GP1 | I68: % GP1 | K68: Net Sales £000’s | L68: £ GP1 | M68: % GP1 | O68: Net Sales £000’s | P68: £ GP1 | Q68: % GP1 | S68: Risks | T68: Net Sales £000’s | U68: £ GP1 | V68: % GP1 | X68: Risks | Y68: Net Sales £000’s | Z68: £ GP1 | AA68: % GP1 | AC68: Risks | AD68: Net Sales £000’s | AE68: £ GP1 | AF68: % GP1 | AH68: Risks | AI68: Net Sales £000’s | AJ68: £ GP1 | AK68: % GP1
B69: Australia | E69: =+D69/C69 ->  | I69: =+H69/G69 ->  | M69: =+L69/K69 ->  | Q69: =+P69/O69 ->  | S69: =+B19 -> Australia | T69: =+C69+G69+K69+O69 -> 0 | U69: =+D69+H69+L69+P69 -> 0 | V69: =+U69/T69 ->  | X69: =+B19 -> Australia | Y69: =+C19+T69 -> -4241 | Z69: =+D19+U69 -> -1418 | AA69: =+Z69/Y69 -> 0.3343551049 | AC69: =+S69 -> Australia | AD69: =+C69+G69+K69+O69 -> 0 | AE69: =+D69+H69+L69+P69 -> 0 | AF69: =+AE69/AD69 ->  | AH69: =+X69 -> Australia | AI69: =+AD69 -> 0 | AJ69: =+AE69 -> 0 | AK69: =+AJ69/AI69 -> 
B70: Morrison’s | S70: Morrison’s | T70: 0 | U70: 0 | V70: =+U70/T70 ->  | X70: Morrison’s | Y70: -2485 | Z70: -311 | AA70: =+Z70/Y70 -> 0.1251509054 | AC70: Morrison’s | AD70: 0 | AE70: 0 | AF70: =+AE70/AD70 ->  | AH70: Morrison’s | AI70: =+AD70+30 -> 30 | AJ70: =+AE70+2 -> 2 | AK70: =+AJ70/AI70 -> 0.06666666667
B71: Asda Danish | O71: -45 | P71: -8 | Q71: 0.1777777778 | S71: Asda Danish | T71: -45 | U71: -8 | V71: =+U71/T71 -> 0.1777777778 | X71: Asda Danish | Y71: -2001 | Z71: 62 | AA71: =+Z71/Y71 -> -0.03098450775 | AC71: Asda Danish | AD71: -45 | AE71: -8 | AF71: =+AE71/AD71 -> 0.1777777778 | AH71: Asda Danish | AI71: =+AD71 -> -45 | AJ71: =+AE71 -> -8 | AK71: =+AJ71/AI71 -> 0.1777777778
B72: Tesco (Ranging & Delists) | C72: -394 | D72: -145 | E72: 0.3680203046 | G72: =-338+92 -> -246 | H72: =-132+18 -> -114 | I72: 0.4634146341 | K72: =-533+78 -> -455 | L72: -72 | M72: 0.1582417582 | O72: -500 | P72: -100 | Q72: 0.2 | S72: Tesco (Ranging & Delists) | T72: -1595 | U72: -431 | V72: 0.2702194357 | X72: Tesco (Ranging & Delists) | Y72: -3929 | Z72: -902 | AA72: 0.2295749555 | AC72: Tesco (Ranging & Delists) | AD72: -1595 | AE72: -431 | AF72: 0.2702194357 | AH72: Tesco (Ranging & Delists) | AI72: =+AD72+180 -> -1415 | AJ72: =+AE72+44 -> -387 | AK72: 0.2734982332
B73: Pret A Manger (FP) | S73: Pret A Manger (FP) | T73: 0 | U73: 0 | X73: Pret A Manger (FP) | Y73: -1052 | Z73: -309 | AA73: 0.2937262357 | AC73: Pret A Manger (FP) | AD73: 0 | AE73: 0 | AH73: Pret A Manger (FP) | AI73: 0 | AJ73: 0
B74: Pricing (Various Customers) | O74: -50 | P74: -50 | Q74: 1 | S74: Pricing (Various Customers) | T74: -50 | U74: -50 | V74: 1 | X74: Pricing (Various Customers) | Y74: -1041 | Z74: -1041 | AA74: 1 | AC74: Pricing (Various Customers) | AD74: -50 | AE74: -50 | AF74: 1 | AH74: Pricing (Various Customers) | AI74: -50 | AJ74: -50 | AK74: 1
B75: Saudi Arabia | O75: -30 | P75: -3 | Q75: 0.1 | S75: Saudi Arabia | T75: -30 | U75: -3 | V75: 0.1 | X75: Saudi Arabia | Y75: -646 | Z75: -212 | AA75: 0.3281733746 | AC75: Saudi Arabia | AD75: -30 | AE75: -3 | AF75: 0.1 | AH75: Saudi Arabia | AI75: -30 | AJ75: -3 | AK75: 0.1
B76: Co-Op | S76: Co-Op | T76: 0 | U76: 0 | X76: Co-Op | Y76: -591 | Z76: -167 | AA76: 0.282571912 | AC76: Co-Op | AD76: 0 | AE76: 0 | AH76: Co-Op | AI76: 0 | AJ76: 0
B77: 3663 | S77: 3663 | T77: 0 | U77: 0 | X77: 3663 | Y77: -560 | Z77: -284 | AA77: 0.5071428571 | AC77: 3663 | AD77: 0 | AE77: 0 | AH77: 3663 | AI77: 0 | AJ77: 0
B78: Other | S78: Other | T78: 0 | U78: 0 | X78: Other | Y78: -562 | Z78: -53 | AA78: 0.09430604982 | AC78: Other | AD78: 0 | AE78: 0 | AH78: Other | AI78: =+AD78+20 -> 20 | AJ78: =+AE78+2 -> 2 | AK78: 0.1
B79: KFC Europe & GB | K79: -99 | L79: -8 | M79: 0.08080808081 | O79: -135 | P79: -10 | Q79: 0.07407407407 | S79: KFC Europe & GB | T79: -234 | U79: -18 | V79: 0.07692307692 | X79: KFC Europe & GB | Y79: -679 | Z79: -63 | AA79: 0.09278350515 | AC79: KFC Europe & GB | AD79: -234 | AE79: -18 | AF79: 0.07692307692 | AH79: KFC Europe & GB | AI79: -234 | AJ79: -18 | AK79: 0.07692307692
B80: LU USA | G80: =-247+68 -> -179 | H80: =-24+13 -> -11 | I80: 0.06145251397 | K80: -167 | L80: -17 | M80: 0.1017964072 | S80: LU USA | T80: -346 | U80: -28 | V80: 0.08092485549 | X80: LU USA | Y80: -659 | Z80: -58 | AA80: 0.08801213961 | AC80: LU USA | AD80: -346 | AE80: -28 | AF80: 0.08092485549 | AH80: LU USA | AI80: -346 | AJ80: -28 | AK80: 0.08092485549
B81: EAT | S81: EAT | T81: 0 | U81: 0 | X81: EAT | Y81: -305 | Z81: -82 | AA81: 0.268852459 | AC81: EAT | AD81: 0 | AE81: 0 | AH81: EAT | AI81: 0 | AJ81: 0
B82: Costco | S82: Costco | T82: 0 | U82: 0 | X82: Costco | Y82: -198 | Z82: -195 | AA82: 0.9848484848 | AC82: Costco | AD82: 0 | AE82: 0 | AH82: Costco | AI82: 0 | AJ82: 0
B83: New Puff Pastry | C83: -75 | D83: =-10-5 -> -15 | E83: 0.2 | G83: -68 | H83: -13 | I83: 0.1911764706 | K83: -79 | L83: -13 | M83: 0.164556962 | O83: -133 | P83: -11.7 | Q83: 0.08796992481 | S83: =+B83 -> New Puff Pastry | T83: -355 | U83: -52.7 | V83: 0.1484507042 | X83: =+B83 -> New Puff Pastry | Y83: =+T83 -> -355 | Z83: =+U83 -> -52.7 | AA83: 0.1484507042 | AC83: New Puff Pastry | AD83: -355 | AE83: -52.7 | AF83: 0.1484507042 | AH83: New Puff Pastry | AI83: -355 | AJ83: -52.7 | AK83: 0.1484507042
B84: LUB | K84: -107 | L84: -12 | M84: 0.1121495327 | S84: =+B84 -> LUB | T84: -107 | U84: -12 | V84: 0.1121495327 | X84: =+B84 -> LUB | Y84: =+T84 -> -107 | Z84: =+U84 -> -12 | AA84: 0.1121495327 | AC84: LUB | AD84: -107 | AE84: -12 | AF84: 0.1121495327 | AH84: LUB | AI84: -107 | AJ84: -12 | AK84: 0.1121495327
B85: Total Risk | C85: =SUM(C69:C84) -> -469 | D85: =SUM(D69:D84) -> -160 | E85: =+D85/C85 -> 0.3411513859 | G85: =SUM(G69:G84) -> -493 | H85: =SUM(H69:H84) -> -138 | I85: =+H85/G85 -> 0.2799188641 | K85: =SUM(K69:K84) -> -907 | L85: =SUM(L69:L84) -> -122 | M85: =+L85/K85 -> 0.1345093716 | O85: =SUM(O69:O84) -> -893 | P85: =SUM(P69:P84) -> -182.7 | Q85: =+P85/O85 -> 0.2045912654 | S85: Total Risk | T85: =SUM(T69:T84) -> -2762 | U85: =SUM(U69:U84) -> -602.7 | V85: =+U85/T85 -> 0.218211441 | X85: Total Risk | Y85: =SUM(Y69:Y84) -> -19411 | Z85: =SUM(Z69:Z84) -> -5097.7 | AA85: =+Z85/Y85 -> 0.2626191335 | AC85: Total Risk | AD85: =SUM(AD69:AD84) -> -2762 | AE85: =SUM(AE69:AE84) -> -602.7 | AF85: =+AE85/AD85 -> 0.218211441 | AH85: Total Risk | AI85: =SUM(AI69:AI84) -> -2532 | AJ85: =SUM(AJ69:AJ84) -> -554.7 | AK85: =+AJ85/AI85 -> 0.2190758294
B87: Net Movement | C87: =+C67+C85 -> 448 | D87: =+D67+D85 -> 25 | E87: =+D87/C87 -> 0.05580357143 | G87: =+G67+G85 -> 447 | H87: =+H67+H85 -> 85 | I87: =+H87/G87 -> 0.1901565996 | K87: =+K67+K85 -> -394 | L87: =+L67+L85 -> -4 | M87: =+L87/K87 -> 0.01015228426 | O87: =+O67+O85 -> -403 | P87: =+P67+P85 -> -68.2 | Q87: =+P87/O87 -> 0.1692307692 | S87: Net Movement | T87: =+T67+T85 -> 98 | U87: =+U67+U85 -> 37.8 | V87: =+U87/T87 -> 0.3857142857 | X87: Net Movement | Y87: =+Y67+Y85 -> -8456 | Z87: =+Z67+Z85 -> -2900.2 | AA87: =+Z87/Y87 -> 0.3429754021 | AC87: Net Movement | AD87: =+AD67+AD85 -> 98 | AE87: =+AE67+AE85 -> 37.8 | AF87: =+AE87/AD87 -> 0.3857142857 | AH87: Net Movement | AI87: =+AI67+AI85 -> -479 | AJ87: =+AJ67+AJ85 -> -121.2 | AK87: =+AJ87/AI87 -> 0.2530271399
C88: =+C87-('Act v FC3'!K20/1000) -> -0.2496094903 | D88: =+D87-('Act v FC3'!K40/1000) -> 0.138305014 | G88: =+G87-('Act v FC3'!L20/1000) -> 0.1127972951 | H88: =+H87-('Act v FC3'!L40/1000) -> 0.4409330399 | K88: =+K87-('Act v FC3'!M20/1000) -> -0.3702373961 | L88: =+L87-('Act v FC3'!M40/1000) -> -0.484816181 | O88: =+O87-('Act v FC3'!N20/1000) -> -403 | P88: =+P87-('Act v FC3'!N40/1000) -> -68.2
X89: 2014 FC4 (GL) | Y89: =+Y42+Y67+Y85 -> 145476 | Z89: =+Z42+Z67+Z85 -> 22950.8 | AA89: =+Z89/Y89 -> 0.1577634799
X91: 2014 FC3 (GL) | Y91: 145378 | Z91: 22913 | AA91: =+Z91/Y91 -> 0.1576098172
X93: Movement | Y93: =+Y89-Y91 -> 98 | Z93: =+Z89-Z91 -> 37.8 | AA93: =+Z93/Y93 -> 0.3857142857

Sheet Act v FC3 (hidden)
B2: Net Sales
B4: FC3 | C4: Jan | D4: Feb | E4: Mar | F4: Apr | G4: May | H4: Jun | I4: Jul | J4: Aug | K4: Sep | L4: Oct | M4: Nov | N4: Dec | O4: TOTAL
C5: Act | D5: Act | E5: Act | F5: Act | G5: Act | H5: Act | I5: Act | J5: Act | K5: FC3 | L5: FC3 | M5: FC3 | N5: FC3
B6: Principal | C6: 9051975.3 | D6: 8878136.85 | E6: 11655568.64 | F6: 11671858.29 | G6: 11969294.12 | H6: 11845154.67 | I6: 12200293.88 | J6: 11024087.3 | K6: 11373149.89 | L6: 11672411.42 | M6: 11289248.69 | N6: 10820238.51 | O6: =SUM(C6:N6) -> 133451417.6
B7: Agency | C7: 1055402.341 | D7: 908932.2558 | E7: 1135369.941 | F7: 1013572.776 | G7: 1187080.495 | H7: 900143.5134 | I7: 948425 | J7: 831918.9814 | K7: 1010303.075 | L7: 984607.8099 | M7: 978766.8896 | N7: 972335.1981 | O7: =SUM(C7:N7) -> 11926858.28
B8: Total | C8: =+C6+C7 -> 10107377.64 | D8: 9787069.106 | E8: 12790938.58 | F8: 12685431.07 | G8: 13156374.61 | H8: 12745298.18 | I8: 13148718.88 | J8: 11856006.28 | K8: 12383452.97 | L8: 12657019.23 | M8: 12268015.58 | N8: 11792573.71 | O8: 145378275.8
B10: Actual (GL) | C10: Jan | D10: Feb | E10: Mar | F10: Apr | G10: May | H10: Jun | I10: Jul | J10: Aug | K10: Sep | L10: Oct | M10: Nov | N10: Dec | O10: TOTAL
C11: Act | D11: Act | E11: Act | F11: Act | G11: Act | H11: Act | I11: Act | J11: Act | K11: Act | L11: Act | M11: Act | N11: Act
B12: Principal | H12: 11845154.67 | I12: 12200294 | J12: 11024087.3 | K12: 11977438.98 | L12: 12103205.09 | M12: 10991025.75 | O12: =SUM(C12:N12) -> 70141205.79
B13: Agency | H13: 900143.5134 | I13: 948425 | J13: 831918.9814 | K13: 854263.5957 | L13: 1000701.347 | M13: 883360.0634 | O13: =SUM(C13:N13) -> 5418812.501
B14: Total | C14: =+C12+C13 -> 0 | D14: 0 | E14: 0 | F14: 0 | G14: 0 | H14: 12745298.18 | I14: 13148719 | J14: 11856006.28 | K14: 12831702.58 | L14: 13103906.44 | M14: 11874385.81 | N14: 0 | O14: 75560018.29
B16: Variance | C16: Jan | D16: Feb | E16: Mar | F16: Apr | G16: May | H16: Jun | I16: Jul | J16: Aug | K16: Sep | L16: Oct | M16: Nov | N16: Dec | O16: TOTAL
C17: Act | D17: Act | E17: Act | F17: Act | G17: Act | H17: Act | I17: Act | J17: Act | K17: Act | L17: Act | M17: Act | N17: Act
B18: Principal | H18: =+H12-H6 -> 0 | I18: 0.120000001 | J18: 0 | K18: =+K12-K6 -> 604289.0885 | L18: 430793.6655 | M18: =+M12-M6 -> -298222.9364 | O18: =SUM(C18:N18) -> 736859.9376
B19: Agency | H19: 0 | I19: 0 | J19: 0 | K19: =+K13-K7 -> -156039.479 | L19: 16093.53723 | M19: =+M13-M7 -> -95406.82623 | O19: =SUM(C19:N19) -> -235352.768
B20: Total | C20: =+C18+C19 -> 0 | D20: 0 | E20: 0 | F20: 0 | G20: 0 | H20: 0 | I20: 0.120000001 | J20: 0 | K20: 448249.6095 | L20: 446887.2027 | M20: -393629.7626 | N20: 0 | O20: 501507.1696
B22: GP1
B24: FC3 | C24: Jan | D24: Feb | E24: Mar | F24: Apr | G24: May | H24: Jun | I24: Jul | J24: Aug | K24: Sep | L24: Oct | M24: Nov | N24: Dec | O24: TOTAL
C25: Act | D25: Act | E25: Act | F25: Act | G25: Act | H25: Act | I25: Act | J25: Act | K25: FC3 | L25: FC3 | M25: FC3 | N25: FC3
B26: Principal | C26: 1485279.11 | D26: 1440571.09 | E26: 1867411.69 | F26: 1935006.29 | G26: 1876997.8 | H26: 1815910.32 | I26: 1942524.99 | J26: 1789208.77 | K26: 1854712.212 | L26: 1892192.345 | M26: 1842003.796 | N26: 1753989.838 | O26: =SUM(C26:N26) -> 21495808.25
B27: Agency | C27: 124680.2886 | D27: 107068.4297 | E27: 133541.5387 | F27: 119597.6575 | G27: 141084.9291 | H27: 107756.1928 | I27: 113722 | J27: 99803.77817 | K27: 120483.279 | L27: 117319.1002 | M27: 116686.746 | N27: 115863.2949 | O27: =SUM(C27:N27) -> 1417607.235
B28: Total | C28: =+C26+C27 -> 1609959.399 | D28: 1547639.52 | E28: 2000953.229 | F28: 2054603.947 | G28: 2018082.729 | H28: 1923666.513 | I28: 2056246.99 | J28: 1889012.548 | K28: 1975195.491 | L28: 2009511.445 | M28: 1958690.542 | N28: 1869853.132 | O28: 22913415.48
B30: Actual (GL) | C30: Jan | D30: Feb | E30: Mar | F30: Apr | G30: May | H30: Jun | I30: Jul | J30: Aug | K30: Sep | L30: Oct | M30: Nov | N30: Dec | O30: TOTAL
C31: Act | D31: Act | E31: Act | F31: Act | G31: Act | H31: Act | I31: Act | J31: Act | K31: Act | L31: Act | M31: Act | N31: Act
B32: Principal | H32: 1815910.32 | I32: 1942524.99 | J32: 1789208.77 | K32: 1897574.78 | L32: 1973986.35 | M32: 1849186.62 | O32: =SUM(C32:N32) -> 11268391.83
B33: Agency | H33: 107756.1928 | I33: 113722 | J33: 99803.77817 | K33: 102482.4055 | L33: 120084.1617 | M33: 105988.7386 | O33: =SUM(C33:N33) -> 649837.2767
B34: Total | C34: =+C32+C33 -> 0 | D34: 0 | E34: 0 | F34: 0 | G34: 0 | H34: 1923666.513 | I34: 2056246.99 | J34: 1889012.548 | K34: 2000057.185 | L34: 2094070.512 | M34: 1955175.359 | N34: 0 | O34: 11918229.11
B36: Variance | C36: Jan | D36: Feb | E36: Mar | F36: Apr | G36: May | H36: Jun | I36: Jul | J36: Aug | K36: Sep | L36: Oct | M36: Nov | N36: Dec | O36: TOTAL
C37: Act | D37: Act | E37: Act | F37: Act | G37: Act | H37: Act | I37: Act | J37: Act | K37: Act | L37: Act | M37: Act | N37: Act
B38: Principal | H38: =+H32-H26 -> 0 | I38: 0 | J38: 0 | K38: =+K32-K26 -> 42862.56849 | L38: 81794.00548 | M38: =+M32-M26 -> 7182.823623 | O38: =SUM(C38:N38) -> 131839.3976
B39: Agency | H39: 0 | I39: 0 | J39: 0 | K39: =+K33-K27 -> -18000.8735 | L39: 2765.061485 | M39: =+M33-M27 -> -10698.00744 | O39: =SUM(C39:N39) -> -25933.81946
B40: Total | C40: =+C38+C39 -> 0 | D40: 0 | E40: 0 | F40: 0 | G40: 0 | H40: 0 | I40: 0 | J40: 0 | K40: 24861.69499 | L40: 84559.06696 | M40: -3515.183819 | N40: 0 | O40: 105905.5781

Sheet Act v FC2 (hidden)
B2: Net Sales | I2: 127521.04 | K2: 121779.125 | L2: =+K2/12% -> 1014826.042 | N2: 114207.86 | O2: =+N2/12% -> 951732.1667
B4: FC2 | C4: Jan | D4: Feb | E4: Mar | F4: Apr | G4: May | H4: Jun | I4: Jul | J4: Aug | K4: Sep | L4: Oct | M4: Nov | N4: Dec | O4: TOTAL
C5: Act | D5: Act | E5: Act | F5: Act | G5: Act | H5: FC2 | I5: FC2 | J5: FC2 | K5: FC2 | L5: FC2 | M5: FC2 | N5: FC2
B6: Principal | C6: 9159093.26 | D6: 10014552.17 | E6: 12022956.91 | F6: 11404291.1 | G6: 11527857.62 | H6: 11391601.75 | I6: 11409860.76 | J6: 11402789.26 | K6: 11653243.72 | L6: 11628149.26 | M6: 11162422.7 | N6: 11066763.53 | O6: =SUM(C6:N6) -> 133843582.1 | Q6: GL
B7: Agency | C7: 927295.3333 | D7: 792832.6667 | E7: 1178710.25 | F7: 1097342 | G7: 1143985.333 | H7: 949580.4015 | I7: 963348.9932 | J7: 1014826.042 | K7: 1030947.784 | L7: 1096538.217 | M7: 1072733.113 | N7: 1102201.153 | O7: =SUM(C7:N7) -> 12370341.29 | Q7: GL - Commission @ 12%
B8: Total | C8: =+C6+C7 -> 10086388.59 | D8: 10807384.84 | E8: 13201667.16 | F8: 12501633.1 | G8: 12671842.95 | H8: 12341182.15 | I8: 12373209.76 | J8: 12417615.3 | K8: 12684191.5 | L8: 12724687.48 | M8: 12235155.82 | N8: 12168964.68 | O8: 146213923.3
B10: Actual (GL) | C10: Jan | D10: Feb | E10: Mar | F10: Apr | G10: May | H10: Jun | I10: Jul | J10: Aug | K10: Sep | L10: Oct | M10: Nov | N10: Dec | O10: TOTAL
C11: Act | D11: Act | E11: Act | F11: Act | G11: Act | H11: FC2 | I11: FC2 | J11: FC2 | K11: FC2 | L11: FC2 | M11: FC2 | N11: FC2
B12: Principal | H12: 12402843.05 | I12: 11902515.88 | J12: 11347570.49 | O12: =SUM(C12:N12) -> 35652929.42 | Q12: GL
B13: Agency | H13: 1036758.833 | I13: 951733 | J13: 1062675.333 | O13: =SUM(C13:N13) -> 3051167.167 | Q13: GL - Commission @ 12%
B14: Total | C14: =+C12+C13 -> 0 | D14: 0 | E14: 0 | F14: 0 | G14: 0 | H14: 13439601.88 | I14: 12854248.88 | J14: 12410245.82 | K14: 0 | L14: 0 | M14: 0 | N14: 0 | O14: 38704096.59
B16: Variance | C16: Jan | D16: Feb | E16: Mar | F16: Apr | G16: May | H16: Jun | I16: Jul | J16: Aug | K16: Sep | L16: Oct | M16: Nov | N16: Dec | O16: TOTAL
C17: Act | D17: Act | E17: Act | F17: Act | G17: Act | H17: FC2 | I17: FC2 | J17: FC2 | K17: FC2 | L17: FC2 | M17: FC2 | N17: FC2
B18: Principal | H18: =+H12-H6 -> 1011241.297 | I18: 492655.1156 | J18: =+J12-J6 -> -55218.77221 | O18: =SUM(C18:N18) -> 1448677.641
B19: Agency | H19: 87178.43181 | I19: -11615.9932 | J19: =+J13-J7 -> 47849.29151 | O19: =SUM(C19:N19) -> 123411.7301
B20: Total | C20: =+C18+C19 -> 0 | D20: 0 | E20: 0 | F20: 0 | G20: 0 | H20: 1098419.729 | I20: 481039.1224 | J20: -7369.480693 | K20: 0 | L20: 0 | M20: 0 | N20: 0 | O20: 1572089.371
B22: GP2
B24: FC2 | C24: Jan | D24: Feb | E24: Mar | F24: Apr | G24: May | H24: Jun | I24: Jul | J24: Aug | K24: Sep | L24: Oct | M24: Nov | N24: Dec | O24: TOTAL
C25: Act | D25: Act | E25: Act | F25: Act | G25: Act | H25: FC2 | I25: FC2 | J25: FC2 | K25: FC2 | L25: FC2 | M25: FC2 | N25: FC2
B26: Principal | C26: 1408812.98 | D26: 1643873.3 | E26: 1802936.89 | F26: 1640315.53 | G26: 1713260.63 | H26: 1642898.987 | I26: 1637183.32 | J26: 1670201.173 | K26: 1698261.658 | L26: 1668768.171 | M26: 1598688.256 | N26: 1536726.682 | O26: =SUM(C26:N26) -> 19661927.58 | Q26: GL - GP1 less Distribution
B27: Agency | C27: 111275.44 | D27: 95139.92 | E27: 141445.23 | F27: 131681.04 | G27: 137278.24 | H27: 113949.6482 | I27: 115601.8792 | J27: 121779.125 | K27: 123713.7341 | L27: 131584.5861 | M27: 128727.9736 | N27: 132264.1383 | O27: =SUM(C27:N27) -> 1484440.954 | Q27: GL
B28: Total | C28: =+C26+C27 -> 1520088.42 | D28: 1739013.22 | E28: 1944382.12 | F28: 1771996.57 | G28: 1850538.87 | H28: 1756848.635 | I28: 1752785.199 | J28: 1791980.298 | K28: 1821975.392 | L28: 1800352.757 | M28: 1727416.229 | N28: 1668990.82 | O28: 21146368.53
B30: Actual (GL) | C30: Jan | D30: Feb | E30: Mar | F30: Apr | G30: May | H30: Jun | I30: Jul | J30: Aug | K30: Sep | L30: Oct | M30: Nov | N30: Dec | O30: TOTAL
C31: Act | D31: Act | E31: Act | F31: Act | G31: Act | H31: FC2 | I31: FC2 | J31: FC2 | K31: FC2 | L31: FC2 | M31: FC2 | N31: FC2
B32: Principal | H32: =2907855-1160563 -> 1747292 | I32: =2847882-1082865 -> 1765017 | J32: 1842732 | O32: =SUM(C32:N32) -> 5355041 | Q32: GL - GP1 less Distribution
B33: Agency | H33: 124411.06 | I33: 114208 | J33: 127521.04 | O33: =SUM(C33:N33) -> 366140.1 | Q33: GL
B34: Total | C34: =+C32+C33 -> 0 | D34: 0 | E34: 0 | F34: 0 | G34: 0 | H34: 1871703.06 | I34: 1879225 | J34: 1970253.04 | K34: 0 | L34: 0 | M34: 0 | N34: 0 | O34: 5721181.1
B36: Variance | C36: Jan | D36: Feb | E36: Mar | F36: Apr | G36: May | H36: Jun | I36: Jul | J36: Aug | K36: Sep | L36: Oct | M36: Nov | N36: Dec | O36: TOTAL
C37: Act | D37: Act | E37: Act | F37: Act | G37: Act | H37: FC2 | I37: FC2 | J37: FC2 | K37: FC2 | L37: FC2 | M37: FC2 | N37: FC2
B38: Principal | H38: =+H32-H26 -> 104393.0134 | I38: 127833.6804 | J38: =+J32-J26 -> 172530.8268 | O38: =SUM(C38:N38) -> 404757.5206
B39: Agency | H39: 10461.41182 | I39: -1393.879184 | J39: =+J33-J27 -> 5741.914982 | O39: =SUM(C39:N39) -> 14809.44761
B40: Total | C40: =+C38+C39 -> 0 | D40: 0 | E40: 0 | F40: 0 | G40: 0 | H40: 114854.4252 | I40: 126439.8012 | J40: 178272.7418 | K40: 0 | L40: 0 | M40: 0 | N40: 0 | O40: 419566.9682

Sheet FC3 (hidden)
B3: Summary R&O to FC2
B5: Opportunities | C5: Net Sales £000’s | D5: £ GP2 | E5: % GP2 | J5: Cases | K5: Category | M5: International | N5: Retail | O5: Foodservice | P5: Internal | Q5: Principal | R5: Agency
B6: Australia | C6: 950 | D6: 248 | E6: 0.2610526316 | J6: 95959 | K6: Danish Pastry | M6: 950 | Q6: 883.5 | R6: 66.5 | S6: 0 | T6: 0
B7: Tesco | C7: 600 | D7: 71 | E7: 0.1183333333 | J7: 39500 | K7: Savoury | N7: 600 | R7: 600 | S7: 0 | T7: 0
B8: Lidl (VCC) | C8: 471 | D8: 85 | E8: 0.1804670913 | J8: 55600 | K8: Danish Pastry | N8: 471 | Q8: 471 | S8: 0 | T8: 0
B9: Other | C9: 164 | D9: 249 | E9: 1.518292683 | J9: 13120 | K9: Danish & French 50/50 | N9: 92 | O9: 72 | Q9: 129 | R9: 35 | S9: 0 | T9: 0
B10: Internal (USA, Germany, Korea & Denmark) | C10: 110 | D10: 11 | E10: 0.1 | J10: 17600 | K10: Danish Pastry | P10: 110 | Q10: 110 | S10: 0 | T10: 0
B11: Morrisons (2nd Seasonal Line) | C11: 84 | D11: 12 | E11: 0.1428571429 | J11: 5800 | K11: French Pastry | N11: 84 | Q11: 84 | S11: 0 | T11: 0
B12: Greene King (Brioche Hot Dog Roll) | C12: 13.33333333 | D12: 2.8 | E12: 0.21 | J12: 2500 | K12: Fast Food | O12: 13.33333333 | Q12: 13.33333333 | S12: 0 | T12: 0
B13: Total Opportunity | C13: 2392.333333 | D13: 678.8 | E13: 0.2837397241
B14: Risks | C14: Net Sales £000’s | D14: £ GP2 | E14: % GP2
B15: Lidl (MPP) | C15: -327 | D15: -48.1 | E15: 0.1470948012 | J15: -32440 | K15: Danish Pastry | N15: -327 | Q15: -327 | S15: 0 | T15: 0
B16: FSC Tender | C16: -100 | D16: -100 | E16: 1 | J16: -7780 | K16: French Pastry | N16: -100 | Q16: -100 | S16: 0 | T16: 0
B17: South Africa | C17: -73 | D17: -20 | E17: 0.2739726027 | J17: -7300 | K17: French & Wheatbread 50/50 | M17: -73 | Q17: -73 | S17: 0 | T17: 0
B18: Total Risk | C18: -500 | D18: -168.1 | E18: 0.3362 | M18: 877 | N18: 820 | O18: 85.33333333 | P18: 110 | Q18: 1190.833333 | R18: 701.5
J19: Danish | K19: 1286 | L19: 143279
B20: Net Movement | C20: 1892.333333 | D20: 510.7 | E20: 0.2698784569 | J20: Savoury | K20: 600 | L20: 39500 | M20: Agency
J21: French | K21: 30 | L21: 930
J22: FF | K22: 13.33333333 | L22: 2500
J23: Wheatbread | K23: -36.5 | L23: -3650
K24: 1892.833333 | L24: 182559

Sheet Final Format
E3: Opportunity and Risk Pipeline LUSA
B5: Zone | C5: Region/sales person | D5: Assigned Rep | E5: Opportunity name - Customer | F5: Segment | G5: Type | H5: Opportunity Type | I5: L3 | J5: Product Category | K5: Product(s) | L5: Proposed Case Net price | M5: Probability % | N5: Launch month in current year | O5: Months to go in current year | P5: Volume Cases Annually | Q5: Volume Pieces Annually | R5: Volume Pieces OP YTG | S5: Net Sales U$ annually | T5: Net Sales U$ OP YTG | U5: Net Sales OP YTG / Probability % | V5: Budget | W5: NPD required | X5: Next Step (due date) - Step comment
O6: =IFERROR(13-MONTH(DATEVALUE(N6&"1")),"-") -> - | R6: =IFERROR(+(Q6/12)*O6,"-") -> - | S6: =IFERROR(+P6*L6,"-") -> 0 | T6: =IFERROR(+(O6/12)*S6,"-") -> - | U6: =IFERROR(SUM(T6*M6),"-") -> -
B7: Total Opportunity | P7: =SUBTOTAL(109,P6:P6) -> 0 | Q7: =SUBTOTAL(109,Q6:Q6) -> 0 | R7: =SUBTOTAL(109,R6:R6) -> 0 | S7: =SUBTOTAL(109,S6:S6) -> 0 | T7: =SUBTOTAL(109,T6:T6) -> 0 | U7: =SUBTOTAL(109,U6:U6) -> 0
B8: Zone | C8: Region/sales person | D8: Assigned Rep | E8: Risk name - Customer | F8: Segment | G8: Type | H8: Risk Type | I8: L3 | J8: Product Category | K8: Product(s) | L8: Unit Net price effect | M8: Probability % | N8: Start month | O8: Months to go in current year | P8: Volume Annual Cases | Q8: Volume Pieces Annually | R8: Volume Pieces OP YTG | S8: Net Sales U$ annually | T8: Net Sales U$ OP YTG | U8: Net Sales OP YTG / Probability % | V8: Budget | W8: Next Step (due date) - Step comment | X8: N/A
O9: =IFERROR(13-MONTH(DATEVALUE(N9&"1")),"-") -> - | R9: =IFERROR(+(Q9/12)*O9,"-") -> - | S9: =IFERROR(+L9*P9,"-") -> 0 | T9: =IFERROR(+(O9/12)*S9,"-") -> - | U9: =IFERROR(SUM(T9*M9),"-") -> -
B10: Total Risk | P10: =SUBTOTAL(109,P9:P9) -> 0 | Q10: =SUBTOTAL(109,Q9:Q9) -> 0 | R10: =SUBTOTAL(109,R9:R9) -> 0 | S10: =SUBTOTAL(109,S9:S9) -> 0 | T10: =SUBTOTAL(109,T9:T9) -> 0 | U10: =SUBTOTAL(109,U9:U9) -> 0
B11: Net Movement | P11: =SUM(P7+P10) -> 0 | Q11: =SUM(Q7+Q10) -> 0 | R11: =SUM(R7+R10) -> 0 | S11: =+S7+S10 -> 0 | T11: =+T7+T10 -> 0 | U11: =+U7+U10 -> 0
B13: Zone | C13: Region/sales person | D13: Assigned Rep | E13: Risk name - Customer | F13: Segment | G13: Type | H13: Risk Type | I13: L3 | J13: Product Category | K13: Product(s) | L13: Unit Net price effect | M13: Probability % | N13: Start month | O13: Months to go in current year | P13: Volume Annual Cases | Q13: Volume Pieces Annually | R13: Volume Pieces OP YTG | S13: Net Sales U$ annually | T13: Net Sales U$ OP YTG | U13: Net Sales OP YTG / Probability % | V13: Budget | W13: No Sale Reason
O14: =IFERROR(13-MONTH(DATEVALUE(N14&"1")),"-") -> - | R14: =IFERROR(+(Q14/12)*O14,"-") -> - | S14: =IFERROR(+L14*P14,"-") -> 0 | T14: =IFERROR(+(O14/12)*S14,"-") -> - | U14: =IFERROR(SUM(T14*M14),"-") -> -
B15: Total No Sale | P15: =SUBTOTAL(109,P14:P14) -> 0 | Q15: =SUBTOTAL(109,Q14:Q14) -> 0 | R15: =SUBTOTAL(109,R14:R14) -> 0 | S15: =SUBTOTAL(109,S14:S14) -> 0 | T15: =SUBTOTAL(109,T14:T14) -> 0 | U15: =SUBTOTAL(109,U14:U14) -> 0

Sheet List
A1: January | B1: 0 | C1: Yes | D1: Hamburger buns | E1: West | F1: Brian
A2: February | B2: 0.2 | C2: No | D2: Sandwich carriers | E2: Northeast | F2: Bruce
A3: March | B3: 0.4 | D3: Dinner rolls | E3: Canada | F3: Cherie
A4: April | B4: 0.6 | D4: Artisan loaves | E4: Natioanl Accts. | F4: Chris
A5: May | B5: 0.8 | D5: Imported bread | E5: Southeast | F5: Drew
A6: June | B6: 1 | D6: Danish pastry | E6: Florida & Export | F6: Eric C
A7: July | D7: Croissants | E7: ISB | F7: Erik I
A8: August | F8: Frank
A9: September | F9: John
A10: October | F10: George
A11: November | F11: Kelly
A12: December | F12: Linda
F13: Mike
F14: Merv
F15: Bill
F16: N/A

Sheet Column descriptions
B1: Zone | C1: Region | D1: Sales person | E1: Opportunity name - Customer | F1: Product Category | G1: Product(s) | H1: Case Volume | I1: Volume Pieces Annually | J1: Launch month in current year | K1: Propsed Case Net price | L1: Probability % | M1: Budget | N1: Comments | O1: NPD | P1: Months to go in current year | Q1: Volume Pieces OP YTG | R1: Net Sales U$ annually | S1: Net Sales U$ OP YTG | T1: Net Sales OP YTG / Probability %
B2: zone name from region roll up | C2: Region from Local Market Roll Up | D2: Assigned Rep | E2: Company Name--will be operator or distributor | F2: L2 | G2: SKU | H2: case volume from opportunity | I2: From Equivalent Unit Field | J2: Estimated Order Date Month | K2: NOTE! Changed to case price! | L2: Opportunity stage or Sold =25, 50, 75 or 100 | M2: nothing in this column, they will add text after they print the report possibly | N2: nothing in this column, they will add text after they print the report possibly | O2: nothing in this column, they will add text after they print the report possibly | P2: Remainder of months of the year according to est. order date. Jan = 12, Feb = 11, March = 10 etc. | Q2: This year ship volume-cases *pieces for pieces volume. Formula =Case volume *equivalent units | R2: Annual Sales not adjusted | S2: Prorated annual dollars based on estimated order date | T2: This column is the net sales multiplied by the probablity from Column L

Sheet data (hidden)
